fUST/lending_fUST_20250827
["ID","MTS","AMOUNT","RATE_DAILY","PERIOD"]
[381632092,1756299136682,-508.7,0.00025479,2]
[381632093,1756299136692,-687.48,0.00025479,2]
[381632094,1756299136705,-1268.98,0.00025479,2]
[381632095,1756299136715,-856.71,0.00025479,2]
[381632096,1756299136725,-480.0,0.00025479,2]
[381632097,1756299136735,-6495.25,0.00025479,2]
[381632098,1756299136745,-636.86,0.00025479,2]
[381632099,1756299136755,-524.69,0.00025479,2]
[381632100,1756299136766,-480.0,0.00025479,2]
[381632101,1756299136777,-486.07,0.00025479,2]
[381632102,1756299136786,-1458.92,0.00025479,2]
[381632103,1756299136797,-905.99,0.00025479,2]
[381632104,1756299136807,-837.39,0.00025479,2]
[381632105,1756299136817,-624.44,0.00025479,2]
[381632106,1756299136827,-1847.92,0.00025479,2]
[381632107,1756299136836,-771.49,0.00025479,2]
[381632108,1756299136846,-1529.63,0.00025479,2]
[381632109,1756299136856,-8247.96,0.00025479,2]
[381632110,1756299136866,-3400.62,0.00025479,2]
[381632111,1756299136875,-583.48,0.00025479,2]
[381632112,1756299136885,-480.0,0.00025479,2]
[381632113,1756299136895,-480.0,0.00025479,2]
[381632114,1756299136905,-480.0,0.00025479,2]
[381632115,1756299136914,-1076.84,0.00025479,2]
[381632116,1756299136924,-1635.61,0.00025479,2]
[381632117,1756299136934,-564.33,0.00025479,2]
[381632118,1756299136944,-480.0,0.00025479,2]
[381632119,1756299136955,-740.19,0.00025479,2]
[381632120,1756299136965,-1200.96,0.00025479,2]
[381632121,1756299136975,-1559.95,0.00025479,2]
[381632122,1756299136985,-1003.43,0.00025479,2]
[381632123,1756299136995,-511.53903116,0.00025479,2]
[381632124,1756299137005,-655.25,0.00025479,2]
[381632125,1756299137015,-1004.24,0.00025479,2]
[381632126,1756299137026,-1160.02,0.00025479,2]
[381632127,1756299137036,-626.39,0.00025479,2]
[381632128,1756299137046,-504.38,0.00025479,2]
[381632129,1756299137058,-748.48,0.00025479,2]
[381632130,1756299137068,-868.0,0.00025479,2]
[381632131,1756299137078,-632.12,0.00025479,2]
[381632132,1756299137088,-656.18,0.00025479,2]
[381632133,1756299137098,-480.0,0.00025479,2]
[381632134,1756299137108,-480.0,0.00025479,2]
[381632135,1756299137118,-515.28,0.00025479,2]
[381632136,1756299137129,-639.39,0.00025479,2]
[381632137,1756299137139,-860.92,0.00025479,2]
[381632138,1756299137150,-707.77,0.00025479,2]
[381632139,1756299137161,-1553.38,0.00025479,2]
[381632140,1756299137172,-480.0,0.00025479,2]
[381632141,1756299137182,-507.0,0.00025479,2]
[381632142,1756299137192,-621.34,0.00025479,2]
[381632143,1756299137204,-480.0,0.00025479,2]
[381632144,1756299137389,-961.78,0.00025479,2]
[381632145,1756299137400,-480.0,0.00025479,2]
[381632146,1756299137410,-2093.04,0.00025479,2]
[381632147,1756299137420,-481.67,0.00025479,2]
[381632148,1756299137430,-861.82,0.00025479,2]
[381632149,1756299137440,-906.46,0.00025479,2]
[381632150,1756299137450,-480.0,0.00025479,2]
[381632151,1756299137460,-500.0,0.00025479,2]
[381632152,1756299137470,-1944.4,0.00025479,2]
[381632153,1756299137480,-480.0,0.00025479,2]
[381632154,1756299137489,-480.0,0.00025479,2]
[381632155,1756299137499,-756.21,0.00025479,2]
[381632156,1756299137509,-691.47,0.00025479,2]
[381632157,1756299137519,-669.41,0.00025479,2]
[381632158,1756299137529,-822.12,0.00025479,2]
[381632159,1756299137539,-664.01,0.00025479,2]
[381632160,1756299137549,-5734.46,0.00025479,2]
[381632161,1756299137559,-480.0,0.00025479,2]
[381632162,1756299137568,-480.0,0.00025479,2]
[381632163,1756299137578,-269.83277598,0.00025479,2]
[381632164,1756299137588,-480.0,0.00025479,2]
[381632165,1756299137598,-1472.58,0.00025479,2]
[381632166,1756299137608,-520.83923092,0.00025479,2]
[381632167,1756299137618,-1010.62,0.00025479,2]
[381632168,1756299137628,-746.58,0.00025479,2]
[381632169,1756299137638,-945.67,0.00025479,2]
[381632170,1756299137648,-820.03,0.00025479,2]
[381632171,1756299137658,-2419.42,0.00025479,2]
[381632172,1756299137667,-2003.06,0.00025479,2]
[381632173,1756299137677,-712.33,0.00025479,2]
[381632174,1756299137686,-632.8,0.00025479,2]
[381632175,1756299137699,-1302.43,0.00025479,2]
[381632176,1756299137709,-879.19,0.00025479,2]
[381632177,1756299137720,-626.24,0.00025479,2]
[381632178,1756299137729,-2358.04,0.00025479,2]
[381632179,1756299137742,-571.94,0.00025479,2]
[381632180,1756299137752,-1028.29,0.00025479,2]
[381632181,1756299137762,-480.0,0.00025479,2]
[381632182,1756299137774,-760.04,0.00025479,2]
[381632183,1756299137785,-480.0,0.00025479,2]
[381632184,1756299137795,-534.07,0.00025479,2]
[381632185,1756299137804,-480.0,0.00025479,2]
[381632186,1756299137814,-773.62,0.00025479,2]
[381632187,1756299137824,-480.0,0.00025479,2]
[381632188,1756299137833,-301.59797681,0.00025479,2]
[381632189,1756299137843,-579.37,0.00025479,2]
[381632190,1756299137852,-481.34,0.00025479,2]
[381632191,1756299137862,-689.04,0.00025479,2]
[381632192,1756299137871,-480.0,0.00025479,2]
[381632193,1756299137881,-558.49,0.00025479,2]
[381632194,1756299137889,-480.0,0.00025479,2]
[381632195,1756299137898,-3533.68,0.00025479,2]
[381632196,1756299137908,-877.94,0.00025479,2]
[381632197,1756299137917,-657.92,0.00025479,2]
[381632198,1756299137927,-1078.58,0.00025479,2]
[381632199,1756299137937,-541.91,0.00025479,2]
[381632200,1756299137946,-680.84,0.00025479,2]
[381632201,1756299137957,-1306.03,0.00025479,2]
[381632202,1756299137967,-4136.98,0.00025479,2]
[381632203,1756299137976,-480.0,0.00025479,2]
[381632204,1756299137986,-611.17,0.00025479,2]
[381632205,1756299137996,-1546.75,0.00025479,2]
[381632206,1756299138005,-745.97,0.00025479,2]
[381632207,1756299138015,-483.6,0.00025479,2]
[381632208,1756299138024,-1237.23,0.00025479,2]
[381632209,1756299138034,-2253.99,0.00025479,2]
[381632210,1756299138045,-4927.91,0.00025479,2]
[381632211,1756299138054,-480.0,0.00025479,2]
[381632212,1756299138065,-727.85,0.00025479,2]
[381632213,1756299138075,-681.98,0.00025479,2]
[381632214,1756299138086,-711.45,0.00025479,2]
[381632215,1756299138096,-2444.85,0.00025479,2]
[381632216,1756299138106,-1897.45,0.00025479,2]
[381632217,1756299138116,-2263.07,0.00025479,2]
[381632218,1756299138126,-4617.09,0.00025479,2]
[381632219,1756299138136,-1837.84,0.00025479,2]
[381632220,1756299138146,-324.77,0.00025479,2]
[381632221,1756299138155,-867.08,0.00025479,2]
[381632222,1756299138165,-480.0,0.00025479,2]
[381632223,1756299138174,-1079.7,0.00025479,2]
[381632224,1756299138184,-2907.91,0.00025479,2]
[381632225,1756299138195,-480.0,0.00025479,2]
[381632226,1756299138205,-1354.76,0.00025479,2]
[381632227,1756299138215,-2286.82,0.00025479,2]
[381632228,1756299138225,-576.96,0.00025479,2]
[381632229,1756299138234,-480.0,0.00025479,2]
[381632230,1756299138243,-1707.9,0.00025479,2]
[381632231,1756299138254,-812.92,0.00025479,2]
[381632232,1756299138263,-480.0,0.00025479,2]
[381632233,1756299138272,-739.93,0.00025479,2]
[381632234,1756299138282,-1062.67,0.00025479,2]
[381632235,1756299138291,-3535.34,0.00025479,2]
[381632236,1756299138301,-679.72,0.00025479,2]
[381632237,1756299138311,-550.73,0.00025479,2]
[381632238,1756299138321,-695.89,0.00025479,2]
[381632239,1756299138332,-577.42,0.00025479,2]
[381632240,1756299138341,-680.83,0.00025479,2]
[381632241,1756299138351,-600.93,0.00025479,2]
[381632242,1756299138361,-829.46,0.00025479,2]
[381632243,1756299138371,-1631.46,0.00025479,2]
[381632244,1756299138381,-1995.59,0.00025479,2]
[381632245,1756299138391,-1590.45,0.00025479,2]
[381632246,1756299138401,-539.05,0.00025479,2]
[381632247,1756299138411,-712.28,0.00025479,2]
[381632248,1756299138421,-638.72,0.00025479,2]
[381632249,1756299138431,-266.71,0.00025479,2]
[381632250,1756299138441,-480.0,0.00025479,2]
[381632251,1756299138452,-480.0,0.00025479,2]
[381632252,1756299138462,-755.02,0.00025479,2]
[381632253,1756299138473,-480.0,0.00025479,2]
[381632254,1756299138483,-789.18,0.00025479,2]
[381632255,1756299138493,-480.0,0.00025479,2]
[381632256,1756299138503,-685.55,0.00025479,2]
[381632257,1756299138514,-2224.28,0.00025479,2]
[381632258,1756299138524,-480.0,0.00025479,2]
[381632259,1756299138533,-622.18,0.00025479,2]
[381632260,1756299138544,-1015.89,0.00025479,2]
[381632261,1756299138554,-229.35,0.00025479,2]
[381632262,1756299138563,-1801.64,0.00025479,2]
[381632263,1756299138573,-678.47,0.00025479,2]
[381632264,1756299138583,-631.08,0.00025479,2]
[381632265,1756299138593,-698.69,0.00025479,2]
[381632266,1756299138603,-908.23,0.00025479,2]
[381632267,1756299138612,-2888.9,0.00025479,2]
[381632268,1756299138622,-480.0,0.00025479,2]
[381632269,1756299138632,-480.0,0.00025479,2]
[381632270,1756299138642,-901.06,0.00025479,2]
[381632271,1756299138652,-480.0,0.00025479,2]
[381632272,1756299138662,-480.0,0.00025479,2]
[381632273,1756299138672,-1290.3,0.00025479,2]
[381632274,1756299138683,-1110.35,0.00025479,2]
[381632275,1756299138694,-911.51,0.00025479,2]
[381632276,1756299138708,-711.28,0.00025479,2]
[381632277,1756299138717,-500.0,0.0002548,2]
[381632278,1756299138727,-168.0,0.0002563,2]
[381632279,1756299138739,-760.0,0.00025632,2]
[381632280,1756299138748,-3429.11361624,0.00025653,2]
[381632281,1756299138758,-4000.0,0.00025708,2]
[381632282,1756299138768,-168.0,0.00025744,2]
[381632283,1756299138779,-1015.0,0.0002575,2]
[381632284,1756299138789,-480.0,0.00025753,2]
[381632285,1756299138798,-480.0,0.00025753,2]
[381632286,1756299138808,-480.0,0.00025753,2]
[381632287,1756299138818,-480.0,0.00025753,2]
[381632288,1756299138827,-493.86,0.00025753,2]
[381632289,1756299138837,-480.0,0.00025753,2]
[381632290,1756299138847,-562.7,0.00025753,2]
[381632291,1756299138857,-524.95,0.00025753,2]
[381632292,1756299138866,-480.0,0.00025753,2]
[381632293,1756299138876,-538.52,0.00025753,2]
[381632294,1756299138886,-550.62,0.00025753,2]
[381632295,1756299138895,-480.0,0.00025753,2]
[381632296,1756299138905,-576.16,0.00025753,2]
[381632297,1756299138914,-662.66,0.00025753,2]
[381632298,1756299138924,-582.51,0.00025753,2]
[381632299,1756299138933,-261.87100008,0.00025753,2]
[381632300,1756299138943,-500.0,0.00025753,2]
[381632301,1756299138953,-480.0,0.00025753,2]
[381632302,1756299138963,-480.0,0.00025753,2]
[381632303,1756299138973,-606.2,0.00025753,2]
[381632304,1756299138982,-706.9,0.00025753,2]
[381632305,1756299138991,-480.0,0.00025753,2]
[381632306,1756299139001,-882.63,0.00025753,2]
[381632307,1756299139010,-480.0,0.00025753,2]
[381632308,1756299139020,-714.33,0.00025753,2]
[381632309,1756299139030,-612.47,0.00025753,2]
[381632310,1756299139039,-480.0,0.00025753,2]
[381632311,1756299139049,-429.05353517,0.00025753,2]
[381632312,1756299139057,-348.95443124,0.00025753,2]
[381632313,1756299139067,-480.0,0.00025753,2]
[381632314,1756299139076,-480.0,0.00025753,2]
[381632315,1756299139085,-512.19,0.00025753,2]
[381632316,1756299139095,-509.06,0.00025753,2]
[381632317,1756299139105,-612.82,0.00025753,2]
[381632318,1756299139114,-627.14,0.00025753,2]
[381632319,1756299139123,-624.19,0.00025753,2]
[381632320,1756299139133,-481.22,0.00025753,2]
[381632321,1756299139143,-528.91,0.00025753,2]
[381632322,1756299139152,-608.41,0.00025753,2]
[381632323,1756299139161,-547.44,0.00025753,2]
[381632324,1756299139171,-480.0,0.00025753,2]
[381632325,1756299139180,-967.44,0.00025753,2]
[381632326,1756299139190,-522.91,0.00025753,2]
[381632327,1756299139200,-486.45,0.00025753,2]
[381632328,1756299139210,-624.58,0.00025753,2]
[381632329,1756299139220,-480.0,0.00025753,2]
[381632330,1756299139231,-480.0,0.00025753,2]
[381632331,1756299139241,-480.0,0.00025753,2]
[381632332,1756299139251,-1513.62,0.00025753,2]
[381632333,1756299139260,-740.6,0.00025753,2]
[381632334,1756299139269,-1456.95,0.00025753,2]
[381632335,1756299139279,-561.33,0.00025753,2]
[381632336,1756299139288,-480.0,0.00025753,2]
[381632337,1756299139298,-1610.42,0.00025753,2]
[381632338,1756299139307,-507.15,0.00025753,2]
[381632339,1756299139316,-480.0,0.00025753,2]
[381632340,1756299139326,-628.11,0.00025753,2]
[381632341,1756299139336,-569.45,0.00025753,2]
[381632342,1756299139345,-480.0,0.00025753,2]
[381632343,1756299139355,-1196.37,0.00025753,2]
[381632344,1756299139364,-1184.81,0.00025753,2]
[381632345,1756299139374,-480.0,0.00025753,2]
[381632346,1756299139384,-595.51,0.00025753,2]
[381632347,1756299139393,-974.71,0.00025753,2]
[381632348,1756299139403,-680.85,0.00025753,2]
[381632349,1756299139413,-642.37,0.00025753,2]
[381632350,1756299139422,-480.0,0.00025753,2]
[381632351,1756299139432,-361.94863918,0.00025753,2]
[381632352,1756299139442,-620.04,0.00025753,2]
[381632353,1756299139451,-1799.04,0.00025753,2]
[381632354,1756299139460,-888.29,0.00025753,2]
[381632355,1756299139471,-511.13,0.00025753,2]
[381632356,1756299139480,-615.79,0.00025753,2]
[381632357,1756299139490,-837.84,0.00025753,2]
[381632358,1756299139499,-1249.5,0.00025753,2]
[381632359,1756299139509,-488.18,0.00025753,2]
[381632360,1756299139518,-841.78,0.00025753,2]
[381632361,1756299139528,-480.0,0.00025753,2]
[381632362,1756299139537,-818.54,0.00025753,2]
[381632363,1756299139546,-634.58,0.00025753,2]
[381632364,1756299139556,-480.0,0.00025753,2]
[381632365,1756299139566,-480.0,0.00025753,2]
[381632366,1756299139576,-1132.23,0.00025753,2]
[381632367,1756299139586,-480.0,0.00025753,2]
[381632368,1756299139595,-480.0,0.00025753,2]
[381632369,1756299139605,-630.18,0.00025753,2]
[381632370,1756299139614,-1020.11,0.00025753,2]
[381632371,1756299139624,-987.21,0.00025753,2]
[381632372,1756299139633,-480.0,0.00025753,2]
[381632373,1756299139643,-480.0,0.00025753,2]
[381632374,1756299139652,-480.0,0.00025753,2]
[381632375,1756299139662,-561.06,0.00025753,2]
[381632376,1756299139671,-544.78,0.00025753,2]
[381632377,1756299139680,-655.34,0.00025753,2]
[381632378,1756299139689,-660.63,0.00025753,2]
[381632379,1756299139703,-935.85,0.00025753,2]
[381632380,1756299139712,-1338.48,0.00025753,2]
[381632381,1756299139722,-306.94118864,0.00025753,2]
[381632382,1756299139731,-651.24,0.00025753,2]
[381632383,1756299139741,-480.0,0.00025753,2]
[381632384,1756299139751,-761.3,0.00025753,2]
[381632385,1756299139761,-631.68,0.00025753,2]
[381632386,1756299139771,-628.89,0.00025753,2]
[381632387,1756299139780,-1057.73,0.00025753,2]
[381632388,1756299139789,-520.4,0.00025753,2]
[381632389,1756299139798,-733.13,0.00025753,2]
[381632390,1756299139807,-775.56,0.00025753,2]
[381632391,1756299139816,-480.0,0.00025753,2]
[381632392,1756299139825,-1793.19,0.00025753,2]
[381632393,1756299139834,-1312.96,0.00025753,2]
[381632394,1756299139843,-480.0,0.00025753,2]
[381632395,1756299139852,-380.4173895,0.00025753,2]
[381632396,1756299139862,-480.0,0.00025753,2]
[381632397,1756299139871,-594.15,0.00025753,2]
[381632398,1756299139880,-628.83,0.00025753,2]
[381632399,1756299139890,-480.0,0.00025753,2]
[381632400,1756299139899,-480.0,0.00025753,2]
[381632401,1756299139909,-902.71,0.00025753,2]
[381632402,1756299139919,-591.53,0.00025753,2]
[381632403,1756299139928,-480.0,0.00025753,2]
[381632404,1756299139938,-818.78,0.00025753,2]
[381632405,1756299139947,-480.0,0.00025753,2]
[381632406,1756299139958,-858.98,0.00025753,2]
[381632407,1756299139967,-746.51,0.00025753,2]
[381632408,1756299139977,-295.60708861,0.00025753,2]
[381632409,1756299139987,-480.0,0.00025753,2]
[381632410,1756299139996,-625.32,0.00025753,2]
[381632411,1756299140006,-1365.1,0.00025753,2]
[381632412,1756299140015,-480.0,0.00025753,2]
[381632413,1756299140026,-480.0,0.00025753,2]
[381632414,1756299140036,-624.5,0.00025753,2]
[381632415,1756299140045,-1152.04,0.00025753,2]
[381632416,1756299140055,-599.34,0.00025753,2]
[381632417,1756299140064,-579.93,0.00025753,2]
[381632418,1756299140074,-2015.87,0.00025753,2]
[381632419,1756299140083,-810.1,0.00025753,2]
[381632420,1756299140092,-793.74,0.00025753,2]
[381632421,1756299140101,-1099.58,0.00025753,2]
[381632422,1756299140111,-480.0,0.00025753,2]
[381632423,1756299140121,-480.0,0.00025753,2]
[381632424,1756299140130,-736.43,0.00025753,2]
[381632425,1756299140139,-1838.61,0.00025753,2]
[381632426,1756299140149,-898.68,0.00025753,2]
[381632427,1756299140158,-480.0,0.00025753,2]
[381632428,1756299140167,-480.0,0.00025753,2]
[381632429,1756299140176,-916.71,0.00025753,2]
[381632430,1756299140184,-480.0,0.00025753,2]
[381632431,1756299140192,-521.43,0.00025753,2]
[381632432,1756299140201,-480.0,0.00025753,2]
[381632433,1756299140209,-539.62,0.00025753,2]
[381632434,1756299140217,-727.24,0.00025753,2]
[381632435,1756299140226,-480.0,0.00025753,2]
[381632436,1756299140235,-909.76,0.00025753,2]
[381632437,1756299140243,-1170.25,0.00025753,2]
[381632438,1756299140251,-1026.14,0.00025753,2]
[381632439,1756299140259,-1249.43,0.00025753,2]
[381632440,1756299140268,-711.06,0.00025753,2]
[381632441,1756299140277,-480.0,0.00025753,2]
[381632442,1756299140286,-962.75,0.00025753,2]
[381632443,1756299140296,-480.0,0.00025753,2]
[381632444,1756299140305,-480.0,0.00025753,2]
[381632445,1756299140315,-670.56,0.00025753,2]
[381632446,1756299140325,-780.75,0.00025753,2]
[381632447,1756299140335,-480.0,0.00025753,2]
[381632448,1756299140344,-633.62,0.00025753,2]
[381632449,1756299140353,-638.03,0.00025753,2]
[381632450,1756299140364,-480.0,0.00025753,2]
[381632451,1756299140373,-886.17,0.00025753,2]
[381632452,1756299140383,-1346.67,0.00025753,2]
[381632453,1756299140392,-677.64,0.00025753,2]
[381632454,1756299140402,-480.0,0.00025753,2]
[381632455,1756299140411,-294.4361867,0.00025753,2]
[381632456,1756299140421,-480.0,0.00025753,2]
[381632457,1756299140431,-741.13,0.00025753,2]
[381632458,1756299140441,-952.53,0.00025753,2]
[381632459,1756299140450,-635.74,0.00025753,2]
[381632460,1756299140461,-480.0,0.00025753,2]
[381632461,1756299140470,-574.03,0.00025753,2]
[381632462,1756299140480,-508.7,0.00025753,2]
[381632463,1756299140489,-687.48,0.00025753,2]
[381632464,1756299140498,-1268.98,0.00025753,2]
[381632465,1756299140508,-856.71,0.00025753,2]
[381632466,1756299140518,-480.0,0.00025753,2]
[381632467,1756299140527,-6495.25,0.00025753,2]
[381632468,1756299140536,-636.86,0.00025753,2]
[381632469,1756299140546,-486.07,0.00025753,2]
[381632470,1756299140555,-1458.92,0.00025753,2]
[381632471,1756299140565,-524.69,0.00025753,2]
[381632472,1756299140575,-905.99,0.00025753,2]
[381632473,1756299140584,-837.39,0.00025753,2]
[381632474,1756299140594,-624.44,0.00025753,2]
[381632475,1756299140780,-1847.92,0.00025753,2]
[381632476,1756299140790,-771.49,0.00025753,2]
[381632477,1756299140800,-1529.63,0.00025753,2]
[381632478,1756299140809,-8247.96,0.00025753,2]
[381632479,1756299140818,-3400.62,0.00025753,2]
[381632480,1756299140827,-583.48,0.00025753,2]
[381632481,1756299140837,-480.0,0.00025753,2]
[381632482,1756299140847,-480.0,0.00025753,2]
[381632483,1756299140856,-480.0,0.00025753,2]
[381632484,1756299140866,-1076.84,0.00025753,2]
[381632485,1756299140876,-1635.61,0.00025753,2]
[381632486,1756299140885,-564.33,0.00025753,2]
[381632487,1756299140895,-480.0,0.00025753,2]
[381632488,1756299140905,-740.19,0.00025753,2]
[381632489,1756299140915,-1200.96,0.00025753,2]
[381632490,1756299140924,-1559.95,0.00025753,2]
[381632491,1756299140934,-1003.43,0.00025753,2]
[381632492,1756299140944,-655.25,0.00025753,2]
[381632493,1756299140953,-1004.24,0.00025753,2]
[381632494,1756299140962,-1160.02,0.00025753,2]
[381632495,1756299140972,-626.39,0.00025753,2]
[381632496,1756299140982,-504.38,0.00025753,2]
[381632497,1756299140991,-748.48,0.00025753,2]
[381632498,1756299141000,-868.0,0.00025753,2]
[381632499,1756299141010,-632.12,0.00025753,2]
[381632500,1756299141019,-656.18,0.00025753,2]
[381632501,1756299141028,-480.0,0.00025753,2]
[381632502,1756299141037,-480.0,0.00025753,2]
[381632503,1756299141047,-515.28,0.00025753,2]
[381632504,1756299141057,-639.39,0.00025753,2]
[381632505,1756299141066,-860.92,0.00025753,2]
[381632506,1756299141075,-707.77,0.00025753,2]
[381632507,1756299141085,-1553.38,0.00025753,2]
[381632508,1756299141094,-480.0,0.00025753,2]
[381632509,1756299141103,-507.0,0.00025753,2]
[381632510,1756299141112,-621.34,0.00025753,2]
[381632511,1756299141120,-480.0,0.00025753,2]
[381632512,1756299141129,-961.78,0.00025753,2]
[381632513,1756299141138,-2093.04,0.00025753,2]
[381632514,1756299141147,-480.0,0.00025753,2]
[381632515,1756299141156,-481.67,0.00025753,2]
[381632516,1756299141166,-861.82,0.00025753,2]
[381632517,1756299141175,-906.46,0.00025753,2]
[381632518,1756299141185,-480.0,0.00025753,2]
[381632519,1756299141194,-500.0,0.00025753,2]
[381632520,1756299141204,-1944.4,0.00025753,2]
[381632521,1756299141214,-480.0,0.00025753,2]
[381632522,1756299141224,-480.0,0.00025753,2]
[381632523,1756299141234,-756.21,0.00025753,2]
[381632524,1756299141244,-691.47,0.00025753,2]
[381632525,1756299141254,-669.41,0.00025753,2]
[381632526,1756299141264,-822.12,0.00025753,2]
[381632527,1756299141274,-664.01,0.00025753,2]
[381632528,1756299141284,-5734.46,0.00025753,2]
[381632529,1756299141294,-480.0,0.00025753,2]
[381632530,1756299141304,-480.0,0.00025753,2]
[381632531,1756299141313,-480.0,0.00025753,2]
[381632532,1756299141323,-1472.58,0.00025753,2]
[381632533,1756299141332,-1010.62,0.00025753,2]
[381632534,1756299141342,-746.58,0.00025753,2]
[381632535,1756299141352,-945.67,0.00025753,2]
[381632536,1756299141362,-820.03,0.00025753,2]
[381632537,1756299141371,-2419.42,0.00025753,2]
[381632538,1756299141381,-2003.06,0.00025753,2]
[381632539,1756299141390,-712.33,0.00025753,2]
[381632540,1756299141400,-632.8,0.00025753,2]
[381632541,1756299141410,-1302.43,0.00025753,2]
[381632542,1756299141420,-879.19,0.00025753,2]
[381632543,1756299141430,-626.24,0.00025753,2]
[381632544,1756299141440,-2358.04,0.00025753,2]
[381632545,1756299141449,-571.94,0.00025753,2]
[381632546,1756299141461,-1028.29,0.00025753,2]
[381632547,1756299141471,-480.0,0.00025753,2]
[381632548,1756299141481,-760.04,0.00025753,2]
[381632549,1756299141491,-480.0,0.00025753,2]
[381632550,1756299141500,-534.07,0.00025753,2]
[381632551,1756299141510,-480.0,0.00025753,2]
[381632552,1756299141520,-773.62,0.00025753,2]
[381632553,1756299141529,-480.0,0.00025753,2]
[381632554,1756299141539,-579.37,0.00025753,2]
[381632555,1756299141548,-481.34,0.00025753,2]
[381632556,1756299141558,-689.04,0.00025753,2]
[381632557,1756299141567,-480.0,0.00025753,2]
[381632558,1756299141576,-558.49,0.00025753,2]
[381632559,1756299141586,-480.0,0.00025753,2]
[381632560,1756299141595,-3533.68,0.00025753,2]
[381632561,1756299141605,-877.94,0.00025753,2]
[381632562,1756299141614,-657.92,0.00025753,2]
[381632563,1756299141624,-541.91,0.00025753,2]
[381632564,1756299141634,-680.84,0.00025753,2]
[381632565,1756299141643,-1306.03,0.00025753,2]
[381632566,1756299141653,-4136.98,0.00025753,2]
[381632567,1756299141662,-480.0,0.00025753,2]
[381632568,1756299141672,-1078.58,0.00025753,2]
[381632569,1756299141681,-611.17,0.00025753,2]
[381632570,1756299141691,-745.97,0.00025753,2]
[381632571,1756299141700,-1546.75,0.00025753,2]
[381632572,1756299141713,-483.6,0.00025753,2]
[381632573,1756299141723,-1237.23,0.00025753,2]
[381632574,1756299141736,-2253.99,0.00025753,2]
[381632575,1756299141754,-4927.91,0.00025753,2]
[381632576,1756299141769,-480.0,0.00025753,2]
[381632577,1756299141779,-727.85,0.00025753,2]
[381632578,1756299141791,-681.98,0.00025753,2]
[381632579,1756299141800,-711.45,0.00025753,2]
[381632580,1756299141809,-2444.85,0.00025753,2]
[381632581,1756299141819,-1897.45,0.00025753,2]
[381632582,1756299141829,-2263.07,0.00025753,2]
[381632583,1756299141838,-4617.09,0.00025753,2]
[381632584,1756299141848,-1837.84,0.00025753,2]
[381632585,1756299141858,-867.08,0.00025753,2]
[381632586,1756299141867,-446.17794996,0.00025753,2]
[381632587,1756299141877,-1079.7,0.00025753,2]
[381632588,1756299141886,-2907.91,0.00025753,2]
[381632589,1756299141895,-480.0,0.00025753,2]
[381632590,1756299141905,-1354.76,0.00025753,2]
[381632591,1756299141914,-2286.82,0.00025753,2]